bitfinex/quotes_ETHUSD_20260102
["timestamp","ask_amount","ask_price","bid_price","bid_amount"]
[1767387357197,2.32389516,3112.5,3111.4,2.33219735]
[1767387357391,2.32389516,3112.5,3111.5,2.33119735]
[1767387357788,2.32389516,3112.5,3111.6,0.843]
[1767387357989,8.74877228,3112.9,3111.7,2.33119735]
[1767387358205,2.32389516,3112.8,3111.7,2.33119735]
[1767387358407,2.32389516,3112.6,3111.8,0.843]
[1767387358608,2.32389516,3112.6,3111.6,0.001]
[1767387358822,2.32389516,3112.4,3111.7,0.843]
[1767387359007,2.32389516,3112.4,3111.6,0.001]
[1767387359314,2.32389516,3112.4,3111.6,0.843]
[1767387359489,2.49520721,3112.2,3111.5,0.843]
[1767387360110,2.49520721,3112.2,3111.0,2.33119735]
[1767387360443,2.49520721,3112.2,3111.1,0.843]
[1767387360792,2.49520721,3112.2,3111.1,3.23226484]
[1767387361011,3.21326435,3112.1,3111.2,2.38926484]
[1767387361193,3.21326435,3112.1,3111.4,2.38926484]
[1767387361395,6.4265287,3112.1,3111.4,2.38926484]
[1767387361716,3.21326435,3112.1,3111.5,0.843]
[1767387362237,5.70816184,3112.4,3111.5,0.843]
[1767387362734,8.92111647,3112.4,3111.5,0.843]
[1767387362902,9.81322812,3112.4,3111.5,0.843]
[1767387363741,3.21295463,3112.4,3111.6,2.38926484]
[1767387363942,3.21274818,3112.6,3111.6,2.38926484]
[1767387364353,6.42549636,3112.6,3111.6,2.38926484]
[1767387365106,2.49520721,3112.7,3111.6,2.38926484]
[1767387365305,2.49520721,3112.7,3111.5,0.843]
[1767387365306,2.49520721,3113.4,3111.8,2.38926484]
[1767387365529,0.89188462,3113.3,3112.0,2.38926484]
[1767387365731,0.89188462,3113.3,3112.2,2.38926484]
[1767387367639,3.21212899,3113.2,3112.4,2.38926484]
[1767387368515,6.42425798,3113.2,3112.4,2.38926484]
[1767387368712,3.21212899,3113.2,3112.4,2.38926484]
[1767387369032,3.21212899,3113.2,3112.4,2.94950579]
[1767387369718,8.92066524,3113.6,3112.4,2.94950579]
[1767387370247,2.49520721,3113.5,3112.4,2.94950579]
[1767387370428,2.49520721,3113.5,3112.4,2.38926484]
[1767387370944,2.49520721,3113.5,3112.2,5.6024078]
[1767387371518,2.53535495,3113.5,3112.3,2.38926484]
[1767387371732,2.49520721,3113.3,3112.3,0.843]
[1767387371918,6.4238453,3113.4,3112.4,2.38926484]
[1767387372113,0.64238453,3113.3,3112.4,2.38926484]
[1767387372537,2.49520721,3113.2,3112.3,0.843]
[1767387374448,2.49520721,3113.0,3112.4,0.843]
[1767387374759,2.49520721,3113.0,3112.0,2.39026484]
[1767387374934,2.49520721,3113.0,3112.1,0.843]
[1767387375143,2.49520721,3112.8,3112.1,0.843]
[1767387375433,2.49520721,3112.8,3112.0,0.001]
[1767387375640,2.49520721,3112.8,3112.1,0.843]
[1767387376252,2.49520721,3112.8,3112.0,0.001]
[1767387376563,0.64238453,3113.3,3112.3,2.38926484]
[1767387376732,3.21203361,3113.3,3112.4,0.96585515]
[1767387378562,6.42406722,3113.3,3112.4,0.96585515]
[1767387379067,3.21203361,3113.3,3112.4,4.17875037]
[1767387379269,3.21203361,3113.3,3112.4,6.56801521]
[1767387379572,3.21203361,3113.3,3112.5,2.38926484]
[1767387379939,5.70717177,3113.4,3112.5,3.36737158]
[1767387380464,2.49520721,3113.4,3112.5,3.36737158]
[1767387381049,2.49520721,3113.4,3112.6,3.21274818]
[1767387381240,0.002,3113.3,3112.7,0.843]
[1767387381442,0.002,3113.3,3112.7,1.58531784]
[1767387381854,0.002,3113.3,3112.8,2.38926484]
[1767387383875,0.002,3113.3,3112.7,0.843]
[1767387384076,0.002,3113.3,3112.8,2.38926484]
[1767387385579,0.002,3113.6,3113.1,2.38926484]
[1767387385751,0.002,3113.6,3113.3,2.38926484]
[1767387386976,0.002,3113.6,3113.5,2.38926484]
[1767387387475,0.002,3114.0,3113.6,2.30773151]
[1767387388373,0.002,3114.0,3113.3,2.30773151]
[1767387388580,0.002,3114.0,3113.3,5.51973176]
[1767387388746,0.002,3114.0,3113.4,4.05491825]
[1767387388942,0.002,3114.0,3113.4,6.36264976]
[1767387389385,0.002,3114.0,3113.4,6.36258777]
[1767387389565,0.002,3114.0,3113.5,2.26269263]
[1767387390153,0.002,3113.6,3113.5,2.26269263]
[1767387390480,0.002,3113.6,3113.5,1.04266294]
[1767387390776,0.002,3113.6,3113.5,0.843]
[1767387393081,0.002,3113.6,3113.5,4.05481949]
[1767387394183,0.002,3113.6,3113.5,6.31751212]
[1767387395757,0.002,3114.0,3113.6,2.26269263]
[1767387396256,0.002,3114.0,3113.5,4.05481949]
[1767387396450,0.002,3114.0,3113.7,2.26269263]
[1767387396671,0.002,3114.0,3113.6,0.72666616]
[1767387396954,0.002,3114.0,3113.7,0.843]
[1767387398079,0.002,3114.0,3113.4,2.26269263]
[1767387398285,0.002,3113.6,3113.2,3.45101531]
[1767387398489,0.002,3114.0,3113.6,2.26269263]
[1767387399959,0.002,3114.0,3113.6,5.47434725]
[1767387400156,0.002,3114.0,3113.6,6.4272731]
[1767387400794,0.002,3114.0,3113.6,3.21561848]
[1767387400977,0.002,3114.0,3113.6,6.42732598]
[1767387401382,0.002,3114.0,3113.6,6.42733418]
[1767387402291,0.002,3114.0,3113.6,9.63905052]
[1767387402597,0.002,3114.0,3113.7,3.31089768]
[1767387404396,0.002,3114.0,3113.7,6.52241893]
[1767387406194,0.002,3114.0,3113.8,2.26269263]
[1767387407470,0.002,3114.0,3113.8,5.47415905]
[1767387408598,2.48937459,3114.5,3113.9,2.26269263]
[1767387408796,2.49137459,3114.7,3114.1,2.26269263]
[1767387409164,2.49137459,3114.7,3114.2,0.843]
[1767387410673,2.49137459,3114.7,3114.3,0.843]
[1767387411672,0.002,3114.7,3114.3,0.843]
[1767387412116,0.002,3114.7,3114.3,4.05277947]
[1767387412404,0.002,3114.7,3114.3,0.84179209]
[1767387414432,3.06174977,3114.7,3114.4,0.843]
[1767387414734,3.06174977,3114.7,3114.5,0.843]
[1767387415238,2.21108617,3114.5,3113.8,3.21141592]
[1767387415411,2.21108617,3114.5,3113.8,3.21142061]
[1767387415617,2.21108617,3114.5,3113.9,4.05438391]
[1767387416225,6.7379285,3114.5,3113.7,2.26269263]
[1767387416429,6.7379285,3114.5,3113.0,3.21231405]
[1767387416430,2.17309757,3114.4,3113.8,0.843]
[1767387416610,2.17309757,3114.4,3113.5,5.4754723]
[1767387416948,2.17309757,3114.4,3113.6,3.21170227]
[1767387417144,2.17309757,3114.4,3113.7,0.843]
[1767387417452,3.06420018,3114.4,3113.7,0.843]
[1767387419249,6.2751117,3114.4,3113.7,0.843]
[1767387420246,0.0379886,3114.5,3114.1,2.34603058]
[1767387420418,2.17309757,3114.4,3114.2,0.843]
[1767387420812,2.17309757,3114.4,3114.3,0.843]
[1767387421125,0.002,3114.4,3114.3,0.843]
[1767387421631,0.0379886,3114.5,3114.3,0.843]
[1767387423548,0.0379886,3114.5,3114.0,2.34603058]
[1767387423747,0.0379886,3114.5,3114.4,0.843]
[1767387423919,0.0379886,3114.5,3114.4,0.84173864]
[1767387424123,0.0379886,3114.5,3114.0,2.34603058]
[1767387424459,0.25929722,3114.5,3114.1,0.843]
[1767387424662,0.25929722,3114.5,3114.1,0.84173887]
[1767387425429,0.04013614,3114.4,3113.6,2.34603058]
[1767387425738,2.17309757,3114.3,3113.7,0.843]
[1767387425945,2.21108617,3114.5,3113.8,2.34603058]
[1767387426255,5.42189447,3114.5,3113.8,2.34603058]
[1767387427361,2.21108617,3114.5,3113.8,2.34603058]
[1767387427575,5.42187713,3114.5,3113.8,2.34603058]
[1767387428463,5.42187713,3114.5,3113.8,5.55753939]
[1767387428767,2.21108617,3114.5,3113.8,5.55753939]
[1767387428969,2.21108617,3114.5,3113.8,6.51876416]
[1767387429141,2.21108617,3114.5,3114.0,0.001]
[1767387429342,2.21108617,3114.5,3114.1,0.843]
[1767387430035,5.42188308,3114.5,3114.1,0.843]
[1767387430238,2.17309757,3114.3,3114.1,0.842]
[1767387430474,2.17309757,3114.3,3113.7,0.843]
[1767387430968,2.17309757,3114.3,3113.7,3.18903058]
[1767387432182,2.17309757,3114.1,3113.5,0.001]
[1767387432391,2.17309757,3113.8,3113.0,2.34603058]
[1767387432553,2.17309757,3113.8,3113.1,3.21218113]
[1767387432746,2.17309757,3113.8,3113.1,3.30739409]
[1767387432967,2.17309757,3113.8,3113.1,6.51962081]
[1767387433682,2.17309757,3113.8,3113.1,3.30739409]
[1767387434654,2.17309757,3113.8,3113.1,6.51962458]
[1767387434854,5.38460938,3113.8,3113.1,3.30739409]
[1767387435279,2.17309757,3113.8,3113.1,3.30739409]
[1767387435579,2.17309757,3113.8,3113.1,5.55824398]
[1767387435799,5.38462491,3113.8,3113.1,2.34603058]
[1767387435983,2.17309757,3113.8,3113.1,5.55825769]
[1767387436552,2.17309757,3113.8,3113.1,2.34603058]
[1767387436780,2.17309757,3113.8,3113.1,5.55825755]
[1767387437087,3.21102402,3114.3,3113.3,2.34603058]
[1767387437959,0.843,3114.5,3113.5,2.34603058]
[1767387438365,4.0538169,3114.5,3113.5,2.34603058]
[1767387439066,4.0538169,3114.5,3113.7,2.34603058]
[1767387439265,4.0538169,3114.5,3113.8,2.34603058]
[1767387442590,7.2646338,3114.5,3113.8,2.34603058]
[1767387442754,5.38383222,3114.6,3113.8,2.34603058]
[1767387443083,5.38383222,3114.6,3113.9,2.34603058]
[1767387445464,5.38583222,3114.6,3113.9,2.34603058]
[1767387446755,3.21273465,3114.6,3113.9,2.34603058]
[1767387446956,0.002,3114.6,3114.0,2.34603058]
[1767387447394,3.21269049,3114.6,3114.0,2.34603058]
[1767387448560,0.002,3114.7,3114.4,2.35168336]
[1767387448786,0.002,3114.7,3114.5,0.23516834]
[1767387449092,0.002,3114.7,3114.5,2.5868517]
[1767387450491,0.002,3114.7,3114.5,2.35168336]
[1767387452164,0.002,3114.7,3114.1,2.27105644]
[1767387452396,0.002,3114.7,3114.2,2.27105644]
[1767387452769,0.002,3114.7,3114.3,2.27105644]
[1767387453594,0.002,3114.7,3114.4,2.27105644]
[1767387453799,0.002,3114.7,3114.6,2.27105644]
[1767387456796,0.002,3114.9,3114.6,2.27105644]
[1767387459300,0.002,3114.9,3114.4,2.27105644]
[1767387459502,0.002,3114.9,3114.5,2.27205644]
[1767387459705,0.002,3115.0,3114.7,2.27105644]
[1767387459871,0.002,3115.0,3114.7,2.81933554]
[1767387460473,0.002,3115.0,3114.7,2.27105644]
[1767387462376,5.31423026,3115.5,3114.8,2.27105644]
[1767387462578,8.52399682,3115.5,3114.8,2.27105644]
[1767387462790,2.1044637,3115.4,3114.8,2.27105644]
[1767387464796,3.20996372,3115.3,3114.8,2.27105644]
[1767387465513,3.20970835,3115.6,3115.1,2.27105644]
[1767387465672,6.4194167,3115.6,3115.1,2.27105644]
[1767387466275,3.20970835,3115.6,3115.1,2.27105644]
[1767387466804,5.31604022,3115.7,3115.1,2.27105644]
[1767387466997,5.31604022,3115.7,3115.2,0.22710564]
[1767387467314,3.21157652,3115.7,3115.2,0.22710564]
[1767387467478,0.002,3115.7,3115.2,0.22710564]
[1767387467678,0.002,3115.6,3115.2,2.49816208]
[1767387469505,0.002,3115.7,3115.3,2.27105644]
[1767387469716,0.002,3115.7,3115.4,2.52087265]
[1767387473920,0.002,3115.7,3115.4,0.24981621]
[1767387474211,0.002,3115.7,3115.2,2.27105644]
[1767387474619,0.002,3115.7,3115.5,2.27105644]
[1767387475119,0.002,3115.9,3115.5,2.27105644]
[1767387476916,0.002,3116.0,3115.6,2.27105644]
[1767387479700,0.346,3116.1,3115.6,2.27105644]
[1767387480018,0.346,3116.1,3115.6,2.81924637]
[1767387480395,3.20856014,3116.7,3115.7,2.29410417]
[1767387480396,0.842,3116.7,3115.7,2.29410417]
[1767387480596,3.20842501,3116.8,3116.2,2.29410417]
[1767387480911,2.1044637,3116.7,3115.9,2.29410417]
[1767387481226,3.21034888,3116.9,3116.2,2.29410417]
[1767387481227,0.002,3116.9,3116.2,2.29410417]
[1767387481393,0.002,3116.9,3116.4,2.29410417]
[1767387481594,0.002,3117.2,3116.7,2.29410417]
[1767387481795,2.1044637,3117.1,3116.3,0.61966669]
[1767387481995,3.20821302,3117.0,3116.2,2.29410417]
[1767387482223,5.3144844,3117.2,3116.3,2.29410417]
[1767387482428,8.5225051,3117.2,3116.3,2.29410417]
[1767387482624,2.1044637,3117.1,3116.3,2.29410417]
[1767387483122,0.002,3116.7,3116.3,2.29410417]
[1767387487524,0.002,3116.7,3116.3,2.68768845]
[1767387488728,0.002,3117.2,3116.7,2.29410417]
[1767387488930,2.1044637,3117.5,3116.3,3.60251734]
[1767387488931,3.20781051,3117.4,3116.9,2.29410417]
[1767387490202,3.20774363,3117.5,3116.9,2.29410417]
[1767387490730,6.41548726,3117.5,3116.9,2.29410417]
[1767387491541,0.72574873,3117.4,3116.9,2.29410417]
[1767387493037,2.1044637,3117.2,3116.4,2.29410417]
[1767387493220,8.52027224,3117.3,3116.4,2.29410417]
[1767387493420,0.72574873,3117.4,3116.7,2.29410417]
[1767387493421,3.93359948,3117.4,3116.7,2.29410417]
[1767387494434,7.14145023,3117.4,3116.7,2.29410417]
[1767387495105,3.93359948,3117.4,3116.7,2.29410417]
[1767387495340,3.20749619,3117.7,3116.8,2.29410417]
[1767387496027,0.0008,3117.8,3116.8,2.29410417]
[1767387496028,3.20822648,3117.8,3116.8,2.29410417]
[1767387496409,0.0008,3117.8,3116.8,2.29410417]
[1767387497236,0.0008,3117.8,3117.0,2.29410417]
[1767387497433,0.0008,3117.8,3117.0,2.84434618]
[1767387497806,0.002,3117.7,3117.0,2.84434618]
[1767387499342,0.002,3117.7,3117.1,2.29410417]
[1767387499544,0.00115835,3118.0,3117.4,2.29410417]
[1767387500236,2.10562205,3118.0,3117.0,0.55024201]
[1767387500451,2.14455478,3117.9,3116.9,2.29410417]
[1767387500620,2.1044637,3117.9,3116.9,2.29410417]
[1767387500821,2.14455607,3117.8,3116.7,5.5026157]
[1767387501118,2.1044637,3117.6,3116.5,5.50282797]
[1767387501329,2.1044637,3117.6,3116.3,3.20992391]
[1767387501330,2.1044637,3117.4,3116.6,5.5027264]
[1767387501537,0.842,3117.9,3116.7,2.29410417]
[1767387501825,5.31185352,3117.8,3116.7,2.29410417]
[1767387502033,4.04930085,3117.9,3116.7,2.29410417]
[1767387502208,6.15376455,3117.9,3116.7,2.29410417]
[1767387502622,0.00115835,3118.0,3117.3,2.29410417]
[1767387502939,0.002,3118.1,3117.7,2.29410417]
[1767387503528,0.002,3118.1,3117.7,5.50156825]
[1767387503744,2.1044637,3118.7,3117.8,2.29410417]
[1767387503943,0.842,3118.9,3117.8,2.29410417]
[1767387504132,4.04830275,3118.9,3118.0,2.29410417]
[1767387505319,7.2546055,3118.9,3118.0,2.29410417]
[1767387505719,0.002,3118.1,3118.0,2.29410417]
[1767387506045,0.002,3118.1,3117.9,0.87090609]
[1767387506046,2.1044637,3118.8,3117.9,0.87090609]
[1767387506352,2.1044637,3118.8,3117.7,5.50155606]
[1767387506554,2.1044637,3118.8,3117.8,2.29410417]
[1767387506844,2.1044637,3118.8,3118.0,0.0321]
[1767387508545,3.20646423,3118.7,3118.0,0.0321]
[1767387508950,6.41292846,3118.7,3118.0,0.0321]
[1767387510263,0.04008208,3118.6,3118.0,0.0321]
[1767387510566,3.2066333,3118.6,3118.0,0.0321]
[1767387510943,2.1044637,3118.5,3118.0,0.0321]
[1767387511662,2.1044637,3118.3,3118.0,0.0321]
[1767387511860,2.1044637,3118.3,3117.6,2.45933144]
[1767387512067,8.5177303,3118.6,3117.7,2.45933144]
[1767387512264,5.311097,3118.6,3117.7,2.45933144]
[1767387512467,8.5177303,3118.6,3117.8,2.45933144]
[1767387512638,0.844,3118.5,3117.8,2.45933144]
[1767387512840,2.9484637,3118.5,3117.5,2.45933144]
[1767387513367,2.9484637,3118.5,3117.6,2.45933144]
[1767387513576,0.844,3118.5,3117.7,2.45933144]
[1767387513879,0.844,3118.5,3117.8,2.45933144]
[1767387514855,4.05069292,3118.5,3117.8,2.45933144]
[1767387516175,2.1064637,3119.0,3118.1,2.45933144]
[1767387516373,0.002,3119.0,3118.1,2.45933144]
[1767387516745,0.002,3119.0,3118.3,2.45933144]
[1767387517487,0.002,3119.2,3118.7,2.45933144]
[1767387518779,0.002,3119.2,3118.3,2.45933144]
[1767387518780,2.1064637,3119.2,3118.3,2.45933144]
[1767387519080,3.20605302,3119.1,3118.3,2.45933144]
[1767387519467,6.41210604,3119.1,3118.3,2.45933144]
[1767387519974,3.20605302,3119.1,3118.3,5.66620456]
[1767387520576,3.20605302,3119.1,3118.4,2.45933144]
[1767387521374,6.41210604,3119.1,3118.4,2.45933144]
[1767387522280,3.20605302,3119.1,3118.4,2.45933144]
[1767387522481,3.20605302,3119.1,3118.4,3.02595045]
[1767387522655,0.002,3119.2,3118.5,2.45933144]
[1767387523565,0.002,3119.2,3118.6,2.45933144]
[1767387529260,0.002,3119.2,3118.6,5.66589488]
[1767387529460,0.002,3119.2,3118.7,2.45933144]
[1767387531799,0.002,3119.2,3118.8,2.45933144]
[1767387532766,0.002,3119.2,3118.5,2.45933144]
[1767387532975,0.002,3119.2,3118.5,2.70526458]
[1767387533597,0.002,3119.2,3118.6,2.45933144]
[1767387536972,0.002,3119.2,3118.7,2.45933144]
[1767387537193,0.002,3119.4,3119.1,2.45933144]
[1767387537520,0.8448,3119.8,3119.3,2.45933144]
[1767387538081,0.0028,3119.8,3119.3,2.45933144]
[1767387539328,0.0028,3119.8,3119.3,5.66516448]
[1767387539494,0.0028,3119.8,3119.4,2.26785732]
[1767387540340,2.18109757,3119.4,3118.4,3.20670297]
[1767387540481,0.04459472,3119.2,3118.7,2.26785732]
[1767387540680,0.841,3119.7,3118.7,2.26785732]
[1767387540888,0.04006923,3119.6,3118.7,2.26785732]
[1767387541108,8.59238141,3119.5,3118.7,2.26785732]
[1767387541302,9.45161955,3119.5,3118.7,2.26785732]
[1767387541504,0.841,3119.4,3118.7,2.26785732]
[1767387542011,0.04007309,3119.3,3118.7,2.26785732]
[1767387542212,2.18109757,3119.3,3118.5,0.3206703]
[1767387542414,2.18109757,3119.3,3117.9,2.26785732]
[1767387542415,2.18109757,3119.2,3117.9,2.26785732]
[1767387542716,2.18109757,3119.0,3117.9,2.49474305]
[1767387543084,3.20636142,3118.8,3118.0,2.26785732]
[1767387543285,2.18109757,3119.7,3118.0,2.26785732]
[1767387543504,2.18109757,3119.5,3118.0,2.26785732]
[1767387543789,0.841,3119.6,3118.0,2.26785732]
[1767387544003,0.841,3119.6,3118.2,2.26785732]
[1767387544205,0.841,3119.6,3118.7,2.26785732]
[1767387544415,0.002,3119.6,3118.7,2.26785732]
[1767387544611,0.843,3119.6,3118.7,2.26785732]
[1767387545123,3.20564192,3119.5,3118.7,2.26785732]
[1767387545297,6.41128384,3119.5,3118.8,0.22688573]
[1767387545608,3.20564192,3119.5,3118.8,0.22688573]
[1767387545815,2.22116937,3119.4,3118.6,0.001]
[1767387546015,2.18109757,3119.2,3118.6,0.001]
[1767387546217,2.22117194,3119.2,3117.8,0.001]
[1767387546414,2.18109757,3119.0,3117.8,0.22788573]
[1767387546910,2.18109757,3118.8,3117.8,0.22788573]
[1767387547113,8.59402603,3118.7,3117.8,0.22788573]
[1767387547314,2.18109757,3118.6,3117.8,0.001]
[1767387547920,2.18109757,3118.6,3117.4,0.001]
[1767387549102,9.62000961,3118.5,3117.4,0.001]
[1767387549306,3.02109757,3118.4,3117.4,0.001]
[1767387549607,6.41333974,3118.5,3117.4,2.26885732]
[1767387549793,0.841,3118.4,3117.6,2.26785732]
[1767387549988,0.841,3118.4,3117.5,0.22688573]
[1767387550220,3.02109757,3118.4,3117.4,0.001]
[1767387550418,3.02109757,3118.4,3117.4,2.26885732]
[1767387550619,2.18009757,3118.4,3117.4,2.26885732]
[1767387551300,6.41375108,3118.3,3117.4,2.26885732]
[1767387551491,0.841,3118.2,3117.4,2.26885732]
[1767387551689,0.841,3118.2,3117.4,2.81652712]
[1767387551891,2.18009757,3118.1,3117.4,0.001]
[1767387552503,3.20666987,3118.5,3117.5,2.26785732]
[1767387552703,0.841,3118.4,3117.5,2.26785732]
[1767387553133,3.20660761,3118.6,3117.5,2.26785732]
[1767387553304,0.841,3118.5,3117.7,2.26785732]
[1767387553624,0.841,3118.5,3117.7,2.81540942]
[1767387554220,6.41272284,3118.8,3117.7,2.81540942]
[1767387554396,0.842,3118.7,3117.7,2.81540942]
[1767387554902,3.02209757,3118.7,3117.7,2.81540942]
[1767387555103,2.18009757,3118.7,3117.7,2.81540942]
[1767387555303,3.20584746,3119.3,3118.0,2.26785732]
[1767387555505,0.842,3119.3,3118.0,2.26785732]
[1767387555704,2.18009757,3119.4,3118.0,2.26785732]
[1767387555941,0.842,3119.2,3118.0,2.26785732]
[1767387557232,3.20584746,3119.3,3118.2,2.26785732]
[1767387557407,0.5385945,3119.2,3118.2,3.1360593]
[1767387557606,0.5385945,3119.2,3118.3,2.26785732]
[1767387558405,0.002,3119.6,3118.3,2.26785732]
[1767387558726,0.0028,3119.8,3118.4,2.26785732]
[1767387559245,0.841,3119.7,3118.6,2.26785732]
[1767387559535,3.20551051,3119.7,3118.6,2.26785732]
[1767387559736,3.20814129,3119.8,3118.6,2.26785732]
[1767387560045,3.20814129,3119.8,3118.8,2.26785732]
[1767387560223,0.002,3119.6,3118.8,2.26785732]
[1767387560603,0.002,3119.6,3118.7,0.86811971]
[1767387560810,0.04206923,3119.6,3118.5,2.26785732]
[1767387561441,0.0028,3119.8,3118.6,2.26785732]
[1767387561741,0.841,3120.0,3119.5,2.26785732]
[1767387562822,0.841,3120.0,3118.6,2.26785732]
[1767387563209,2.22215782,3120.3,3118.6,2.26785732]
[1767387563400,2.18209757,3120.1,3118.6,2.26785732]
[1767387563601,13.68285029,3120.2,3118.7,2.26785732]
[1767387563602,2.18209757,3119.9,3118.7,2.26785732]
[1767387564033,3.06316424,3119.8,3118.7,2.26785732]
[1767387564242,0.04006667,3119.8,3118.7,2.26785732]
[1767387564404,0.841,3119.7,3118.7,2.26785732]
[1767387564600,0.841,3119.6,3118.9,2.26785732]
[1767387565522,4.0465954,3119.6,3118.9,2.26785732]
[1767387565726,0.841,3119.7,3118.9,2.26785732]
[1767387566132,11.79686585,3120.2,3118.9,2.26785732]
[1767387566133,2.22216038,3120.1,3118.9,2.26785732]
[1767387566700,3.02309757,3120.0,3118.5,2.26785732]
[1767387566919,2.52847899,3119.9,3118.6,0.54746048]
[1767387567116,2.52847899,3119.9,3118.5,2.26785732]
[1767387567311,2.02847899,3119.9,3118.6,3.20649591]
[1767387567542,3.36455712,3120.6,3119.2,2.28826438]
[1767387567543,3.20451195,3120.6,3119.2,2.28826438]
[1767387567725,0.002,3120.9,3119.2,2.28826438]
[1767387567926,0.002,3119.9,3119.2,2.28826438]
[1767387568233,0.002,3119.9,3119.1,9.61815906]
[1767387568234,3.20443753,3120.7,3119.8,2.28826438]
[1767387568442,0.841,3120.4,3119.4,2.28826438]
[1767387569133,6.40887506,3120.7,3119.4,2.28826438]
[1767387569639,3.20430658,3120.8,3119.6,2.32673593]
[1767387569812,4.04530658,3120.8,3119.6,2.32673593]
[1767387570333,0.002,3120.9,3119.6,2.32673593]
[1767387570537,0.841,3120.7,3119.6,2.32673593]
[1767387571534,3.20620391,3120.9,3119.6,2.32673593]
[1767387571746,0.002,3120.9,3119.8,2.32673593]
[1767387571915,0.841,3120.8,3119.8,2.87995316]
[1767387572117,2.02847899,3120.7,3118.9,2.32673593]
[1767387572339,2.02847899,3120.7,3119.0,3.20609285]
[1767387572545,2.02847899,3120.7,3118.9,5.53295301]
[1767387572741,2.02847899,3120.7,3118.9,2.32673593]
[1767387572943,2.02847899,3120.3,3118.6,3.21836343]
[1767387573245,2.02847899,3120.1,3118.7,0.55460994]
[1767387573411,2.02847899,3120.1,3118.6,0.0118]
[1767387573612,7.2512564,3120.0,3118.6,0.0118]
[1767387573939,0.841,3119.9,3118.6,0.0118]
[1767387574138,2.02847899,3119.9,3118.6,0.0118]
[1767387574311,0.841,3119.8,3118.6,0.0118]
[1767387574512,1.1279479,3119.7,3118.7,0.3219383]
[1767387574829,0.841,3119.7,3118.7,0.3219383]
[1767387575221,0.841,3119.7,3118.6,0.0118]
[1767387575422,2.86947899,3119.7,3118.6,0.0118]
[1767387575608,3.20553917,3119.6,3118.6,0.0118]
[1767387575807,6.41107834,3119.6,3118.6,0.0118]
[1767387576336,0.841,3119.5,3118.7,2.32673593]
[1767387576536,0.841,3119.5,3118.8,0.55450993]
[1767387576921,0.841,3119.5,3118.7,2.32673593]
[1767387577444,9.61574123,3119.9,3118.7,2.32673593]
[1767387577625,0.841,3119.8,3118.7,2.32673593]
[1767387577820,0.841,3119.8,3118.8,2.32673593]
[1767387578142,6.41005094,3120.1,3118.8,2.32673593]
[1767387578349,1.82278555,3120.0,3118.9,0.55332002]
[1767387578521,2.02847899,3119.9,3118.6,0.0118]
[1767387579327,0.841,3119.8,3118.7,2.32673593]
[1767387579545,0.841,3119.8,3118.6,0.0118]
[1767387579546,2.02847899,3119.7,3118.6,0.0118]
[1767387579734,9.28055733,3119.6,3118.6,0.0118]
[1767387579909,12.4860965,3119.6,3118.6,0.0118]
[1767387580113,1.24860965,3119.5,3118.6,0.0118]
[1767387580345,0.08952695,3119.3,3117.8,0.001]
[1767387580513,2.02847899,3119.2,3117.8,0.001]
[1767387580720,2.02847899,3118.8,3117.4,0.001]
[1767387580929,2.02747899,3118.6,3117.4,0.001]
[1767387581121,0.2868479,3118.5,3117.4,0.001]
[1767387581322,0.841,3118.4,3117.4,0.001]
[1767387581646,6.41375108,3118.3,3117.4,0.001]
[1767387581811,9.62062662,3118.3,3117.4,0.001]
[1767387582216,0.841,3118.2,3117.4,0.001]
[1767387582838,1.56647511,3118.2,3116.8,2.32673593]
[1767387583469,0.08952695,3118.0,3116.5,0.001]
[1767387583625,2.02747899,3117.9,3116.5,0.001]
[1767387584029,9.62216946,3117.8,3116.5,0.001]
[1767387584228,1.16496485,3117.7,3116.5,0.001]
[1767387584542,1.16496485,3117.7,3116.6,2.32753673]
[1767387584934,0.841,3117.6,3116.6,2.32753673]
[1767387585136,1.16496485,3117.7,3116.6,2.32753673]
[1767387585337,0.841,3117.6,3116.6,2.32753673]
[1767387585532,3.20720921,3118.0,3116.7,2.5595896]
[1767387585734,0.841,3117.9,3116.7,2.5595896]
[1767387586041,3.20738982,3117.8,3116.8,2.32673593]
[1767387586349,0.2868479,3118.5,3116.8,2.32673593]
[1767387586350,0.841,3117.7,3116.8,2.32673593]
[1767387587262,6.4135454,3118.4,3116.8,2.32673593]
[1767387587551,6.4135454,3118.4,3116.9,0.89766315]
[1767387587552,3.53951832,3118.3,3116.9,0.89766315]
[1767387587756,3.53951832,3118.3,3116.8,2.32673593]
[1767387588127,6.41395676,3118.2,3116.8,5.53513739]
[1767387588496,0.842,3118.1,3116.9,2.32673593]
[1767387589557,0.842,3118.1,3116.7,0.23285367]
[1767387589742,0.842,3118.1,3116.9,2.32673593]
[1767387589929,0.842,3118.1,3116.9,2.90353492]
[1767387590142,3.20718409,3118.0,3116.9,6.11184356]
[1767387590340,3.20718409,3118.0,3117.0,2.32673593]
[1767387590559,3.2067727,3118.4,3117.0,2.32673593]
[1767387590759,2.86947899,3118.1,3116.9,0.57679899]
[1767387591053,0.2869479,3118.0,3116.9,3.20831328]
[1767387591238,0.842,3117.9,3117.0,2.32673593]
[1767387591623,0.842,3118.0,3117.0,2.32673593]
[1767387592060,0.842,3118.1,3117.0,2.32673593]
[1767387592253,0.842,3118.1,3117.2,2.32673593]
[1767387593237,3.20687554,3118.3,3117.2,2.32673593]
[1767387593441,0.842,3118.6,3117.3,2.88022053]
[1767387593658,2.02747899,3119.3,3117.3,2.88022053]
[1767387593857,2.02747899,3119.0,3117.3,2.88022053]
[1767387594269,7.25451722,3118.9,3117.5,2.32673593]
[1767387594454,0.842,3118.8,3117.5,2.32673593]
[1767387594650,0.842,3118.8,3117.7,2.32673593]
[1767387594977,0.842,3118.8,3117.6,0.87423387]
[1767387594978,2.86947899,3118.8,3117.6,0.87423387]
[1767387595178,2.02747899,3118.8,3117.3,2.32673593]
[1767387595354,2.02747899,3118.8,3117.1,3.20805478]
[1767387595550,2.02747899,3118.8,3116.7,0.23285367]
[1767387595551,0.842,3118.7,3117.0,2.32673593]
[1767387595779,0.842,3118.7,3117.4,2.32673593]
[1767387595976,2.02747899,3118.7,3117.4,2.32673593]
[1767387596155,0.2027479,3118.6,3117.4,2.55940952]
[1767387596364,0.842,3118.7,3117.6,2.32673593]
[1767387597293,6.41231162,3119.0,3117.6,2.32673593]